Cogmind - Beta 14 @@@ ROGUE MODE // 2025.03.10 @ 23:29:02 Player: puppuppit Result: Destroyed by 8K-SUQ(R) with Subdweller Machine Gun Performance ------------- Evolutions (0) 0 Regions Visited (2) 400 Robots Destroyed (31) 155 Value Destroyed (456) 456 Prototype IDs (2) 40 Alien Tech Used (0) 0 Bonus (0) 0 TOTAL SCORE: 1051 Bonus ------- None Cogmind --------- Core Integrity 0/250 Matter 256/300 Energy 123/125 System Corruption 1% Temperature Cool (6) Movement Rolling (135) Ox3 Location -10/Subcaves Parts ------- > --- POWER (1) -------- Light Ion Engine > --- PROPULSION (2) --- Wheel Compact Wheel > --- UTILITY (2) ------ Huge Storage Unit Light Armor Plating > --- WEAPON (2) ------- Assault Rifle Light Assault Rifle > --- INVENTORY (25) --- Light Ion Engine Wheel Wheel Wheel Wheel Medium Matter Pod (100) Medium Matter Pod (100) Medium Matter Pod (100) Medium Matter Pod (100) Medium Matter Pod (100) Medium Matter Pod (100) Subdweller Optics Improved Terrain Scanner Targeting Computer Targeting Computer Utility Shielding Utility Shielding Utility Shielding Light Armor Plating Light Assault Rifle Mining Laser Mining Claw Peak State ------------ > --- POWER ------------ Ion Engine > --- PROPULSION ------- Wheel Compact Wheel > --- UTILITY ---------- Huge Storage Unit Improved Terrain Scanner > --- WEAPON ----------- Assault Rifle Assault Rifle > --- INVENTORY -------- Light Ion Engine Wheel Wheel Compact Wheel Compact Wheel Small Matter Pod Medium Matter Pod Utility Shielding Utility Shielding Mining Laser [Rating: 10] Favorites ----------- Power Ion Engine Engine Ion Engine Propulsion Compact Wheel Wheel Compact Wheel Utility Huge Storage Unit Device Improved Terrain Scanner Storage Huge Storage Unit Protection Backup Plating I Weapon Assault Rifle Ballistic Gun Assault Rifle Build | -11 -10 -10 ------- Run | Yrd Mat Sub Slots Evolved . | . . . Power . | . . . Propulsion . | . . . Utility . | . . . Weapon . | . . . Parts Attached 27 | 10 14 3 Power 3 | 2 1 . Engine 3 | 2 1 . Core . | . . . Reactor . | . . . Propulsion 12 | 4 7 1 Treads . | . . . Leg . | . . . Wheel 12 | 4 7 1 Hover . | . . . Flight . | . . . Utility 5 | 2 2 1 Device 1 | 1 . . Storage 2 | 1 1 . Processor . | . . . Hackware . | . . . Protection 2 | . 1 1 Artifact . | . . . Weapon 7 | 2 4 1 Energy Gun . | . . . Energy Cannon . | . . . Ballistic Gun 7 | 2 4 1 Ballistic Cannon . | . . . Launcher . | . . . Special Weapon . | . . . Impact Weapon . | . . . Slashing Weapon . | . . . Piercing Weapon . | . . . Special Melee Weapon . | . . . Unidentified Prototypes . | . . . Parts Lost 8 | . 5 3 Power 1 | . 1 . Propulsion 4 | . 3 1 Utility 1 | . . 1 Weapon 2 | . 1 1 Highest Loss Streak 3 | . 3 2 To Critical Strikes . | . . . Average Slot Usage (%) 99 | . 99 95 Engine 13 | . 13 14 Wheel 27 | . 27 26 Device 4 | . 5 . Storage 14 | . 14 14 Protection 9 | . 8 13 Ballistic Gun 27 | . 27 27 Peak Build Rating 10 | 9 10 9 Average Rating 8 | 6 9 8 On Entrance 6 | . 9 9 Naked Turns . | . . . Heaviest Build 90 | 15 90 89 Greatest Support 32 | 32 32 32 Greatest Overweight (x) 5 | . 5 5 Average Overweight (x) 1 | . 1 2 Largest Inventory Capacity 25 | 8 25 25 Average Capacity 22 | 7 23 25 Most Carried 25 | 8 25 25 Average Carried 17 | 3 18 23 Final Capacity 25 | 8 25 25 Final Carried 25 | 8 25 22 Class Distribution -------------------- 100% | Mutant Dominant Class ---------------- Mutant | -10/Materials Mutant | -10/Subcaves Resources | -11 -10 -10 ----------- Run | Yrd Mat Sub Matter Collected 1406 | 335 1032 39 Remotely . | . . . Salvage Created 1142 | 240 806 96 Parts 69 | 18 43 8 Haulers Intercepted 2 | . 2 . Recyclers Shooed 1 | . 1 . Parts Field Recycled . | . . . Retrieved Matter . | . . . Parts Self-Destructed . | . . . Prevented . | . . . Kills | -11 -10 -10 ------- Run | Yrd Mat Sub Combat Hostiles Destroyed 11 | . 9 2 Guns 11 | . 9 2 Classes Destroyed 9 | 3 5 1 Worker 6 | 2 4 . Builder 1 | . 1 . Tunneler 5 | 5 . . Hauler 2 | . 2 . Recycler 4 | 1 3 . Watcher 2 | . 2 . Swarmer 3 | . 3 . Grunt 6 | . 6 . Subdweller 2 | . . 2 Best Kill Streak 4 | 4 4 1 Combat Bots Only 3 | . 3 1 Max Kills in Single Turn 1 | 1 1 1 Gunslinging . | . . . Exploded . | . . . Melee . | . . . Uniques/NPCs Destroyed . | . . . Combat | -11 -10 -10 -------- Run | Yrd Mat Sub Hostile Shots Fired 106 | . 82 24 Missed 27 | . 20 7 Damage Taken 1094 | . 698 396 Core 259 | . 104 155 Absorbed by Shields . | . . . Regen/Repaired (Parts) 88 | . 88 . Core Remaining (%) 100 | 100 . . Volleys Fired 87 | 15 62 10 Largest 2 | 2 2 2 Hottest 40 | 40 40 40 Shots Fired 174 | 30 124 20 Gun 174 | 30 124 20 Cannon . | . . . Launcher . | . . . Special . | . . . Kinetic 174 | 30 124 20 Thermal . | . . . Explosive . | . . . Electromagnetic . | . . . Robot Hit Streak 17 | 6 17 8 Robot Miss Streak 3 | 2 3 1 Penetration Max . | . . . Secondary Targets 2 | . 1 1 Max Gunslinging Chain 1 | . 1 1 Shots Hit Robots 112 | 18 77 17 Core Hits 45 | 8 32 5 Critical Kills 2 | . 2 . Critical Parts Destroyed . | . . . Critical Strikes 2 | . 2 . Destroy 2 | . 2 . Melee Attacks . | . . . Impact . | . . . Slashing . | . . . Piercing . | . . . Sneak Attacks . | . . . Combat Hostiles . | . . . Follow-up Attacks . | . . . Damage Inflicted 1310 | 238 905 167 Guns 1310 | 238 905 167 Cannons . | . . . Explosions . | . . . Melee . | . . . Ramming . | . . . Kinetic 1310 | 238 905 167 Thermal . | . . . Explosive . | . . . Electromagnetic . | . . . Impact . | . . . Slashing . | . . . Piercing . | . . . Highest Corruption 1 | . 1 1 Average Corruption 1 | . 1 1 Corruption Purged . | . . . Corruption Blocked . | . . . Effects 11 | . 11 . Message Errors 1 | . 1 . Matter Fused 5 | . 5 . Heat Flow Errors 3 | . 3 . Energy Discharges 1 | . 1 . Data Loss (minor) 1 | . 1 . Overload Shots . | . . . Overflow Damage . | . . . Projectiles . | . . . Explosions . | . . . Melee . | . . . Knockbacks . | . . . Impact . | . . . Kinetic . | . . . Secondary . | . . . Self-Inflicted Damage . | . . . Shots . | . . . Rammed . | . . . Targets Rammed . | . . . Kicked . | . . . Crushed . | . . . Highest Temperature 232 | . 232 . Average Temperature 42 | . 42 . Received Heat Transfer 402 | . 360 42 Effects 2 | . 2 . Interference 2 | . 2 . Siege Activations . | . . . Robots Corrupted . | . . . Combat Hostiles . | . . . Parts Fried . | . . . Impact Corruptions . | . . . Robots Melted . | . . . Combat Hostiles . | . . . Parts Melted . | . . . Heat Transferred . | . . . Parts Sabotaged . | . . . Parts Stolen . | . . . Parts Stripped . | . . . Power Chain Reactions . | . . . Alert | -11 -10 -10 ------- Run | Yrd Mat Sub Peak Influence 215 | 40 215 . Initial 26 | . 26 . Average 83 | 19 90 . Maximum Alert Level 1 | . 1 . Low Security (%) 90 | 100 89 . Level 1 9 | . 10 . Level 2 . | . . . Level 3 . | . . . Level 4 . | . . . Level 5 . | . . . High Security . | . . . Max Security . | . . . Squads Dispatched 2 | . 2 . Investigation 2 | . 2 . Extermination . | . . . Reinforcement . | . . . Assault . | . . . Garrison . | . . . Intercept . | . . . Searches Triggered . | . . . Construction Impeded . | . . . Haulers Reinforced . | . . . Active Scanning Responses . | . . . Cargo Convoy Interrupts . | . . . Stealth | -11 -10 -10 --------- Run | Yrd Mat Sub Distress Signals 1 | . 1 . Communications Jammed . | . . . Distress Signals . | . . . Times Spotted 25 | . 20 5 Peak Tracking Total 4 | . 4 3 Tactical Retreats 3 | . 3 . Traps | -11 -10 -10 ------- Run | Yrd Mat Sub Traps Triggered . | . . . Indirectly . | . . . Trap Hack Attempts . | . . . Triggered . | . . . Disarmed . | . . . Reprogrammed 5 | . 5 . Reused 2 | . 2 . Traps Extracted . | . . . Installed . | . . . Triggered 2 | . 2 . Machines | -11 -10 -10 ---------- Run | Yrd Mat Sub Machines Disabled 1 | . 1 . Max in Single Turn 1 | . 1 . Machines Repaired . | . . . Machines Dismantled . | . . . Machines Sabotaged . | . . . Overloaded Fab Kills . | . . . Hacking | -11 -10 -10 --------- Run | Yrd Mat Sub Machines Accessed 11 | . 11 . Terminals 8 | . 8 . Fabricators . | . . . Repair Stations 1 | . 1 . Recycling Units 2 | . 2 . Scanalyzers . | . . . Garrison Access . | . . . Total Hacks 36 | . 36 . Successful 21 | . 21 . Failed 15 | . 15 . Catastrophic 2 | . 2 . Database Lockouts . | . . . Manual 25 | . 25 . Terminals 28 | . 28 . Fabricators . | . . . Repair Stations 3 | . 3 . Recycling Units 5 | . 5 . Scanalyzers . | . . . Garrison Access . | . . . Terminal Hacks 7 | . 7 . Robot Analysis 3 | . 3 . Prototype ID Bank 1 | . 1 . Terminal Index 1 | . 1 . Reprogram Traps 2 | . 2 . Fabricator Hacks . | . . . Repair Station Hacks 3 | . 3 . Scan Component 1 | . 1 . Repair 1 | . 1 . Refit 1 | . 1 . Recycling Unit Hacks 5 | . 5 . Process 2 | . 2 . Retrieve Matter 2 | . 2 . Retrieve Components 1 | . 1 . Scanalyzer . | . . . Garrison Access Hacks . | . . . Unauthorized Hacks 6 | . 6 . Terminals 6 | . 6 . Botnet 6 | . 6 . Fabricators . | . . . Repair Stations . | . . . Recycling Units . | . . . Scanalyzers . | . . . Garrison Access . | . . . Data Cores Recovered . | . . . Used . | . . . Hacking Detections 9 | . 9 . Full Trace Events 4 | . 4 . Feedback Events 1 | . 1 . Corruption 1 | . 1 . Feedback Blocked . | . . . Robot Schematics Acquired . | . . . Robots Built . | . . . Authchips . | . . . Time . | . . . Total Robot Build Rating . | . . . Part Schematics Acquired . | . . . Parts Built . | . . . Authchips . | . . . Time . | . . . Total Part Build Rating . | . . . Parts Repaired 1 | . 1 . Time 26 | . 26 . Parts Recycled . | . . . Recycled Matter 226 | . 226 . Retrieved Matter 319 | . 319 . Retrieved Components 9 | . 9 . Parts Scanalyzed . | . . . Part Schematics Acquired . | . . . Parts Damaged . | . . . Bothacking | -11 -10 -10 ------------ Run | Yrd Mat Sub Used RIF Installer . | . . . Robots Hacked . | . . . Non-combat . | . . . Combat . | . . . Robot Hacks Applied . | . . . Relay Couplers Released . | . . . Fabnet Peak Effective % . | . . . Robots Rewired . | . . . Allies Hacked . | . . . Hacks Repelled . | . . . Allies | -11 -10 -10 -------- Run | Yrd Mat Sub Total Allies . | . . . Largest Group . | . . . Highest-Rated Group . | . . . Highest-Rated Ally . | . . . Total Orders . | . . . Ally Attacks . | . . . Total Damage . | . . . Kills . | . . . Allies Corrupted . | . . . Allies Melted . | . . . Intel | -11 -10 -10 ------- Run | Yrd Mat Sub Robot Analysis Total 3 | . 3 . Derelict Logs Recovered 2 | . . 2 Drone Launches . | . . . Drone Recoveries . | . . . Exploration | -11 -10 -10 ------------- Run | Yrd Mat Sub Turns Passed 1513 | 137 1240 136 Spaces Moved 921 | 78 771 72 Core 1 | 1 . . Treads . | . . . Legs . | . . . Wheels 920 | 77 771 72 Hover . | . . . Flight . | . . . Fastest Speed 50 | 50 90 130 Average Speed 124 | 92 126 133 Slowest Speed 175 | 100 175 175 Overloaded Moves . | . . . Propulsion Burnouts . | . . . Robots Hopped . | . . . Cave-ins Triggered . | . . . Exploration Rate (%) 35 | 5 92 8 Regions Visited 2 Branch Regions 1 Pre-discovered Areas . | . . . Known Exits Taken . | . . . Unknown Exits Taken 2 | 1 1 . Scrap Searched . | . . . Spaces Dug . | . . . Terrain Destroyed . | . . . Melee . | . . . Projectile . | . . . AOE . | . . . Terrain Rammed . | . . . Walls Destroyed . | . . . Machines Disabled . | . . . Actions | -11 -10 -10 --------- Run | Yrd Mat Sub Total 1123 | 109 920 94 Wait 55 | . 47 8 Move 918 | 77 769 72 Hop . | . . . Pick Up 28 | 6 21 1 Fast Attach 8 | 7 1 . Attach 9 | . 6 3 Detach 2 | . 2 . Swap 10 | 3 7 . Drop 6 | 1 5 . Fire 87 | 15 62 10 Melee . | . . . Ram . | . . . Kick . | . . . Crush . | . . . Escape Stasis . | . . . Rewire . | . . . Trap . | . . . Miscellaneous . | . . . Route ------- -11/Scrapyard -10/Materials (discovered 6 exits: [*Mat x3] / [*Min x2] / [*Sub]) -10/Subcaves History --------- Turn | Location | Event 11 | -11/Scrapyard | Discovered new exit (range 15) 138 | -11/Scrapyard | Entered Materials 289 | -10/Materials | Discovered new exit (range 7) 297 | -10/Materials | Discovered new exit (range 15) 314 | -10/Materials | Build established: Mutant 538 | -10/Materials | Discovered new exit (range 15) 606 | -10/Materials | Repaired Assault Rifle 709 | -10/Materials | Discovered new exit (range 10) 719 | -10/Materials | Discovered new exit (range 15) 919 | -10/Materials | Lost 3 parts (1p1n1w) 1365 | -10/Materials | Discovered new exit (range 11) 1378 | -10/Materials | Entered Subcaves 1388 | -10/Subcaves | Learned Materials interactive machine intel 1446 | -10/Subcaves | Core integrity fell below 50% 1501 | -10/Subcaves | Core integrity fell below 20% 1514 | -10/Subcaves | Destroyed by 8K-SUQ(R) with Subdweller Machine Gun Last Messages --------------- 01365_ Overheating: System interference. 01365_ Assault Rifle temporarily disabled. 01365_ EXIT=FOUND LOCATION=UNKNOWN AMBIENT_HEAT=-10 GOAL=ESCAPE 01382_ Acquired derelict log, extracted data. Data stored: Mines entrances (x2). 01388_ Acquired derelict log, extracted data. Data stored: Materials interactive machine intel. 01449_ Com. Wheel destroyed. 01452_ BJ-P2Z(R) destroyed. 01454_ Subatomizers dissect the Sub. Power Source. 01455_ Acquired 39 matter. 01460_ Acquired Sub. Optics. 01506_ Lgt. Armor Plating destroyed. 01507_ D1-4XI(R) destroyed. 01507_ Switching to secondary target: ED-RJZ(R). 01508_ Assault Rifle destroyed. 01511_ NH-9GL(R) affixes Scrap Shield Fragment to Scrap Shield. Map ----- +----------------------------------------------------+ | #?## ##???????????????????????????? | | ### #???????????????????????????? | | ## #???????????????????????????? | | ?#% ## ####???????????????????????????? | | ?### #??????????????????????????????? | | ????## #??????????????????????????????? | | ?????# ### " #??????????????????????????????? | | ???? ##?##"" #??????????????????????????????? | | #?? #???#"&*#??????????????????????????????? | | ?? #???#&%##??##??????????????????????????? | | ? #??## &#### ##?????????????????????????? | | # ##??# "##????????????????????????? | | # ###????# "" #????????????????????????? | | # ???????# ##"" #??????????????????????? | | ? ????????### ##?? #??????????????????????? | | ? ??????????# #????? ???????????????????????? | | ???????????????# ##????? ??????????????????????? | | ???????????????### ####??????????????????????????? | | ?????????????????# # #??????????????????????????? | | ?????????????????### ###?????????????????????????? | | ???????????????????## "#######???????????????????? | | ????????????????????## # ##" #???????????????? | | ?????????????????????# " #???????????????? | | ?????????????????????## #### #????????????????? | | ?????????????????????# RR##?????????????????????? | | ?????????????????????# !@#??????????????????????? | | ?????????????????????##=R##??????????????????????? | | ??????????????????????#! ###????????????????????? | | ?????????????????????#"# #????????????????????? | | ?????????????????????#####" "#???????????????????? | | ?????????????????????????#"" #??????????????????? | | ?????????????????????????#""" "#?????????????????? | | ?????????????????????????#"" " #?????????????????? | | ?????????????????????????#"""" #?????????????????? | | ?????????????????????????#"""" #?????????????????? | | ?????????????????????????????????????????????????? | | ?????????????????????????????????????????????????? | | ?????????????????????????????????????????????????? | | ?????????????????????????????????????????????????? | | ?????????????????????????????????????????????????? | | ?????????????????????????????????????????????????? | | ?????????????????????????????????????????????????? | | ?????????????????????????????????????????????????? | | ?????????????????????????????????????????????????? | | ?????????????????????????????????????????????????? | | ?????????????????????????????????????????????????? | | ?????????????????????????????????????????????????? | | ?????????????????????????????????????????????????? | | ?????????????????????????????????????????????????? | | ?????????????????????????????????????????????????? | +----------------------------------------------------+ Best States ------------- Heat Dissipation 25 Energy Generation 10 Energy Capacity 250 Matter Stores 300 Matter Capacity 300 Sight Range 16 Terrain Scan Range 16 Terrain Scan Density 10 Armor Coverage 150 Evasion (%) 42 Item Schematics ----------------- None Robot Schematics ------------------ None Fabricated ------------ Nothing Alien Tech Used ----------------- None Achievements -------------- None Challenges ------------ None Game ------ Seed LegArmoredActivator Manual? 0 Play Time 00:10:35 Cumulative 190.3 hours Start 2025.03.10 @ 23:18:53 End 2025.03.10 @ 23:29:02 Sessions 1 Manual Loads 0 Difficulty Rogue Special Mode None Game No. 102 Rogue 102 Adventurer 0 Explorer 0 Win Type - Total 3 Types 1/0/1/1/0/0/0/0/0 Lore% 62 Gallery% 65 Achievement% 60 Wizard Run 0 Options --------- Layout 0 ASCII 0 Keyboard 1 Movement Vi Keybinds 0 Fullscreen 1 Font 12/Proggy Map View 83x54 Zoom Use 0% Tactical HUD 1 Map Filters NONE Filters NONE Steam 0 RUN: 4f97891f-544f-474e-afe5-744b27f26af3